[Event "Titled Tuesday Blitz December 20 Late 2022"]
[White "Silva, Miguel Antonio Neto"]
[Black "Goryachkina, Aleksandra"]
[WhiteFideId "1911929"]
[BlackFideId "4147103"]
[WhiteElo "2223"]
[BlackElo "2484"]
[Result "1/2-1/2"]
[Round "04"]
[TimeControl "180+1"]
[Date "2022.12.21"]
[WhiteClock "0:00:20"]
[BlackClock "0:00:05"]

1. Nf3 {[%clk 0:03:00]}  d5 {[%clk 0:02:58]} 2. d4 {[%clk 0:02:59]}  Nf6 {[%clk 0:02:56]} 3. c4 {[%clk 0:02:57]}  c6 {[%clk 0:02:56]} 4. e3 {[%clk 0:02:57]}  Bf5 {[%clk 0:02:56]} 5. Nc3 {[%clk 0:02:56]}  e6 {[%clk 0:02:56]} 6. Nh4 {[%clk 0:02:46]}  Bg6 {[%clk 0:02:56]} 7. Be2 {[%clk 0:02:42]}  Nbd7 {[%clk 0:02:54]} 8. Qb3 {[%clk 0:02:41]}  Qb6 {[%clk 0:02:48]} 9. Bd2 {[%clk 0:02:40]}  Be7 {[%clk 0:02:46]} 10. Nxg6 {[%clk 0:02:37]}  hxg6 {[%clk 0:02:46]} 11. h3 {[%clk 0:02:37]}  g5 {[%clk 0:02:25]} 12. O-O-O {[%clk 0:02:33]}  a5 {[%clk 0:02:11]} 13. Kb1 {[%clk 0:02:22]}  Qxb3 {[%clk 0:02:04]} 14. axb3 {[%clk 0:02:21]}  Bb4 {[%clk 0:02:05]} 15. Bd3 {[%clk 0:02:16]}  O-O-O {[%clk 0:01:59]} 16. Kc2 {[%clk 0:02:12]}  Kb8 {[%clk 0:01:52]} 17. f3 {[%clk 0:01:52]}  e5 {[%clk 0:01:00]} 18. Rhe1 {[%clk 0:01:21]}  Rhe8 {[%clk 0:00:58]} 19. cxd5 {[%clk 0:01:18]}  cxd5 {[%clk 0:00:57]} 20. Bb5 {[%clk 0:01:18]}  Rc8 {[%clk 0:00:45]} 21. Kb1 {[%clk 0:01:14]}  Re7 {[%clk 0:00:37]} 22. Bxd7 {[%clk 0:00:57]}  Rxd7 {[%clk 0:00:19]} 23. dxe5 {[%clk 0:00:56]}  Ne8 {[%clk 0:00:19]} 24. Na4 {[%clk 0:00:55]}  Bxd2 {[%clk 0:00:16]} 25. Rxd2 {[%clk 0:00:55]}  Rc6 {[%clk 0:00:16]} 26. Red1 {[%clk 0:00:54]}  Nc7 {[%clk 0:00:16]} 27. Nc3 {[%clk 0:00:50]}  Re6 {[%clk 0:00:15]} 28. f4 {[%clk 0:00:50]}  gxf4 {[%clk 0:00:12]} 29. exf4 {[%clk 0:00:51]}  f6 {[%clk 0:00:11]} 30. Nxd5 {[%clk 0:00:45]}  fxe5 {[%clk 0:00:08]} 31. Nxc7 {[%clk 0:00:45]}  Rxd2 {[%clk 0:00:08]} 32. Rxd2 {[%clk 0:00:32]}  Kxc7 {[%clk 0:00:08]} 33. fxe5 {[%clk 0:00:25]}  Rxe5 {[%clk 0:00:08]} 34. Rf2 {[%clk 0:00:22]}  g5 {[%clk 0:00:07]} 35. Rf3 {[%clk 0:00:19]}  Kc6 {[%clk 0:00:06]} 36. g3 {[%clk 0:00:19]}  Kc5 {[%clk 0:00:06]} 37. h4 {[%clk 0:00:19]}  gxh4 {[%clk 0:00:06]} 38. gxh4 {[%clk 0:00:19]}  Re1+ {[%clk 0:00:06]} 39. Ka2 {[%clk 0:00:18]}  Rh1 {[%clk 0:00:06]} 40. Rf4 {[%clk 0:00:18]}  b5 {[%clk 0:00:05]} 41. Rg4 {[%clk 0:00:19]}  b4 {[%clk 0:00:05]} 42. Rg5+ {[%clk 0:00:18]}  Kb6 {[%clk 0:00:06]} 43. h5 {[%clk 0:00:18]}  Ka6 {[%clk 0:00:03]} 44. Rf5 {[%clk 0:00:18]}  Kb6 {[%clk 0:00:04]} 45. Rg5 {[%clk 0:00:18]}  Ka6 {[%clk 0:00:04]} 46. Rf5 {[%clk 0:00:19]}  Kb6 {[%clk 0:00:05]} 47. Rg5 {[%clk 0:00:20]} 1/2-1/2


[Site "https://www.chess.com"]

[Event "Titled Tuesday Blitz December 20 Late 2022"]
[White "Steinberg, Nitzan"]
[Black "Nakamura, Hikaru"]
[WhiteFideId "2801795"]
[BlackFideId "2016192"]
[WhiteElo "2491"]
[BlackElo "2909"]
[Result "0-1"]
[Round "04"]
[TimeControl "180+1"]
[Date "2022.12.20"]
[WhiteClock "0:00:05"]
[BlackClock "0:00:21"]

1. e4 {[%clk 0:03:00]}  d5 {[%clk 0:03:00]} 2. exd5 {[%clk 0:03:00]}  Qxd5 {[%clk 0:03:00]} 3. Nc3 {[%clk 0:03:01]}  Qa5 {[%clk 0:03:01]} 4. Bc4 {[%clk 0:02:59]}  c6 {[%clk 0:02:59]} 5. Nf3 {[%clk 0:02:54]}  Nf6 {[%clk 0:02:59]} 6. h3 {[%clk 0:02:52]}  Bf5 {[%clk 0:02:59]} 7. d4 {[%clk 0:02:51]}  e6 {[%clk 0:02:57]} 8. O-O {[%clk 0:02:52]}  Bb4 {[%clk 0:02:57]} 9. Bd2 {[%clk 0:02:51]}  Nbd7 {[%clk 0:02:57]} 10. a3 {[%clk 0:02:50]}  Bxc3 {[%clk 0:02:57]} 11. Bxc3 {[%clk 0:02:51]}  Qc7 {[%clk 0:02:58]} 12. Bd2 {[%clk 0:02:41]}  O-O {[%clk 0:02:53]} 13. Ba2 {[%clk 0:02:31]}  c5 {[%clk 0:02:53]} 14. dxc5 {[%clk 0:02:27]}  Nxc5 {[%clk 0:02:54]} 15. Be3 {[%clk 0:02:16]}  Na4 {[%clk 0:02:39]} 16. Bd4 {[%clk 0:02:16]}  Qxc2 {[%clk 0:02:31]} 17. Qe1 {[%clk 0:02:06]}  Nb6 {[%clk 0:02:15]} 18. Rc1 {[%clk 0:01:50]}  Qe4 {[%clk 0:02:05]} 19. Qa5 {[%clk 0:01:50]}  Bg6 {[%clk 0:01:53]} 20. Rfe1 {[%clk 0:01:45]}  Qd3 {[%clk 0:01:53]} 21. Bxb6 {[%clk 0:01:36]}  axb6 {[%clk 0:01:54]} 22. Qxb6 {[%clk 0:01:36]}  Qa6 {[%clk 0:01:50]} 23. Qb4 {[%clk 0:01:29]}  Qa5 {[%clk 0:01:36]} 24. Qxa5 {[%clk 0:01:21]}  Rxa5 {[%clk 0:01:37]} 25. Ne5 {[%clk 0:01:19]}  Be4 {[%clk 0:01:33]} 26. Nc4 {[%clk 0:01:17]}  Ra6 {[%clk 0:01:32]} 27. Ne3 {[%clk 0:01:12]}  g5 {[%clk 0:01:26]} 28. Rc7 {[%clk 0:01:06]}  Bc6 {[%clk 0:01:22]} 29. Rd1 {[%clk 0:00:53]}  Rb8 {[%clk 0:01:10]} 30. Bc4 {[%clk 0:00:50]}  Ra5 {[%clk 0:01:06]} 31. b4 {[%clk 0:00:36]}  Rxa3 {[%clk 0:01:03]} 32. b5 {[%clk 0:00:37]}  Be8 {[%clk 0:00:50]} 33. g3 {[%clk 0:00:37]}  h6 {[%clk 0:00:43]} 34. Kg2 {[%clk 0:00:32]}  Ra4 {[%clk 0:00:38]} 35. Rb1 {[%clk 0:00:20]}  Kf8 {[%clk 0:00:26]} 36. Be2 {[%clk 0:00:20]}  Rd4 {[%clk 0:00:24]} 37. Bf3 {[%clk 0:00:20]}  b6 {[%clk 0:00:24]} 38. Nc4 {[%clk 0:00:19]}  Nd5 {[%clk 0:00:22]} 39. Bxd5 {[%clk 0:00:17]}  Rxd5 {[%clk 0:00:23]} 40. Ne3 {[%clk 0:00:14]}  Rxb5 {[%clk 0:00:23]} 41. Rxb5 {[%clk 0:00:13]}  Bxb5 {[%clk 0:00:23]} 42. Ng4 {[%clk 0:00:14]}  Kg7 {[%clk 0:00:19]} 43. Ne5 {[%clk 0:00:13]}  Be8 {[%clk 0:00:20]} 44. Rc4 {[%clk 0:00:04]}  b5 {[%clk 0:00:20]} 45. Rb4 {[%clk 0:00:05]}  f6 {[%clk 0:00:20]} 46. Nf3 {[%clk 0:00:05]}  Bc6 {[%clk 0:00:20]} 47. g4 {[%clk 0:00:05]}  f5 {[%clk 0:00:20]} 48. Kg3 {[%clk 0:00:05]}  f4+ {[%clk 0:00:21]} 49. Kg2 {[%clk 0:00:05]}  Bd5 {[%clk 0:00:21]} 0-1


[Site "https://www.chess.com"]

[Event "Titled Tuesday Blitz December 20 Late 2022"]
[White "Suder, Jakub"]
[Black "Buchenau, Frank"]
[WhiteFideId "1195310"]
[BlackFideId "4604350"]
[WhiteElo "2245"]
[BlackElo "2157"]
[Result "1-0"]
[Round "04"]
[TimeControl "180+1"]
[Date "2022.12.21"]
[WhiteClock "0:01:01"]
[BlackClock "0:01:11"]

1. d4 {[%clk 0:03:00]}  e6 {[%clk 0:02:58]} 2. c4 {[%clk 0:03:01]}  Nf6 {[%clk 0:02:57]} 3. Nc3 {[%clk 0:03:01]}  Bb4 {[%clk 0:02:57]} 4. f3 {[%clk 0:03:01]}  c5 {[%clk 0:02:53]} 5. d5 {[%clk 0:03:01]}  Bxc3+ {[%clk 0:02:53]} 6. bxc3 {[%clk 0:03:00]}  d6 {[%clk 0:02:53]} 7. e4 {[%clk 0:03:00]}  Qa5 {[%clk 0:02:52]} 8. Qc2 {[%clk 0:02:50]}  Nbd7 {[%clk 0:02:51]} 9. Ne2 {[%clk 0:02:47]}  Ne5 {[%clk 0:02:50]} 10. Ng3 {[%clk 0:02:45]}  Bd7 {[%clk 0:02:40]} 11. Be2 {[%clk 0:02:43]}  Ba4 {[%clk 0:02:39]} 12. Qb2 {[%clk 0:02:38]}  O-O-O {[%clk 0:02:34]} 13. f4 {[%clk 0:02:25]}  Ng6 {[%clk 0:02:31]} 14. O-O {[%clk 0:02:22]}  e5 {[%clk 0:02:25]} 15. Rb1 {[%clk 0:01:59]}  Qa6 {[%clk 0:02:07]} 16. Bd3 {[%clk 0:01:48]}  Nxf4 {[%clk 0:02:03]} 17. Bxf4 {[%clk 0:01:48]}  exf4 {[%clk 0:02:03]} 18. Rxf4 {[%clk 0:01:49]}  Nd7 {[%clk 0:01:22]} 19. Rxf7 {[%clk 0:01:03]}  Ne5 {[%clk 0:01:21]} 20. Rxb7 {[%clk 0:01:03]}  Nxd3 {[%clk 0:01:15]} 21. Rb8+ {[%clk 0:01:00]}  Kc7 {[%clk 0:01:14]} 22. Qb7+ {[%clk 0:01:00]}  Qxb7 {[%clk 0:01:11]} 23. R1xb7# {[%clk 0:01:01]} 1-0


[Site "https://www.chess.com"]

[Event "Titled Tuesday Blitz December 20 Late 2022"]
[White "Tari, Aryan"]
[Black "Mekhitarian, Krikor Sevag"]
[WhiteFideId "1510045"]
[BlackFideId "2107660"]
[WhiteElo "2620"]
[BlackElo "2604"]
[Result "1-0"]
[Round "04"]
[TimeControl "180+1"]
[Date "2022.12.20"]
[WhiteClock "0:00:06"]
[BlackClock "0:00:04"]

1. e4 {[%clk 0:03:00]}  c5 {[%clk 0:02:56]} 2. Nf3 {[%clk 0:02:57]}  e6 {[%clk 0:02:55]} 3. d4 {[%clk 0:02:54]}  cxd4 {[%clk 0:02:55]} 4. Nxd4 {[%clk 0:02:55]}  Nc6 {[%clk 0:02:54]} 5. Nc3 {[%clk 0:02:52]}  a6 {[%clk 0:02:55]} 6. Bf4 {[%clk 0:02:48]}  d6 {[%clk 0:02:48]} 7. Nxc6 {[%clk 0:02:46]}  bxc6 {[%clk 0:02:49]} 8. Qd2 {[%clk 0:02:46]}  e5 {[%clk 0:02:26]} 9. Bg5 {[%clk 0:02:42]}  Nf6 {[%clk 0:01:55]} 10. O-O-O {[%clk 0:02:39]}  Be6 {[%clk 0:01:55]} 11. f4 {[%clk 0:02:38]}  Qa5 {[%clk 0:01:48]} 12. a3 {[%clk 0:01:50]}  exf4 {[%clk 0:01:23]} 13. Bxf4 {[%clk 0:01:42]}  Rd8 {[%clk 0:01:20]} 14. Qd3 {[%clk 0:01:09]}  Ng4 {[%clk 0:01:07]} 15. Qg3 {[%clk 0:00:58]}  Be7 {[%clk 0:00:53]} 16. Be2 {[%clk 0:00:58]}  h5 {[%clk 0:00:50]} 17. Bxg4 {[%clk 0:00:32]}  Bxg4 {[%clk 0:00:46]} 18. Rd3 {[%clk 0:00:32]}  O-O {[%clk 0:00:34]} 19. Bxd6 {[%clk 0:00:31]}  Rxd6 {[%clk 0:00:28]} 20. Rxd6 {[%clk 0:00:32]}  h4 {[%clk 0:00:27]} 21. Qd3 {[%clk 0:00:27]}  Bxd6 {[%clk 0:00:25]} 22. Qxd6 {[%clk 0:00:28]}  Be6 {[%clk 0:00:22]} 23. Qf4 {[%clk 0:00:24]}  Qh5 {[%clk 0:00:20]} 24. h3 {[%clk 0:00:22]}  Rd8 {[%clk 0:00:17]} 25. Rd1 {[%clk 0:00:22]}  Rxd1+ {[%clk 0:00:17]} 26. Nxd1 {[%clk 0:00:23]}  Qe2 {[%clk 0:00:14]} 27. Qxh4 {[%clk 0:00:13]}  Qxg2 {[%clk 0:00:14]} 28. Qd8+ {[%clk 0:00:08]}  Kh7 {[%clk 0:00:14]} 29. Qd3 {[%clk 0:00:07]}  Qxh3 {[%clk 0:00:13]} 30. Qxa6 {[%clk 0:00:06]}  Qh6+ {[%clk 0:00:07]} 31. Kb1 {[%clk 0:00:07]}  Qd2 {[%clk 0:00:07]} 32. Qf1 {[%clk 0:00:06]}  g5 {[%clk 0:00:03]} 33. Nc3 {[%clk 0:00:04]}  g4 {[%clk 0:00:03]} 34. e5 {[%clk 0:00:04]}  Qd4 {[%clk 0:00:02]} 35. Qh1+ {[%clk 0:00:03]}  Kg8 {[%clk 0:00:02]} 36. Ne4 {[%clk 0:00:02]}  Qxe5 {[%clk 0:00:02]} 37. Qe1 {[%clk 0:00:01]}  Bd5 {[%clk 0:00:02]} 38. Nf6+ {[%clk 0:00:01]}  Qxf6 {[%clk 0:00:03]} 39. a4 {[%clk 0:00:02]}  g3 {[%clk 0:00:03]} 40. Qxg3+ {[%clk 0:00:02]}  Qg6 {[%clk 0:00:03]} 41. Qb8+ {[%clk 0:00:02]}  Kg7 {[%clk 0:00:04]} 42. b3 {[%clk 0:00:02]}  Be4 {[%clk 0:00:03]} 43. Qe5+ {[%clk 0:00:02]}  f6 {[%clk 0:00:03]} 44. Qc3 {[%clk 0:00:02]}  Qf5 {[%clk 0:00:02]} 45. a5 {[%clk 0:00:03]}  c5 {[%clk 0:00:03]} 46. a6 {[%clk 0:00:02]}  Ba8 {[%clk 0:00:02]} 47. Qa5 {[%clk 0:00:02]}  Qd5 {[%clk 0:00:02]} 48. Qc7+ {[%clk 0:00:02]}  Kg6 {[%clk 0:00:03]} 49. a7 {[%clk 0:00:03]}  f5 {[%clk 0:00:03]} 50. Qc8 {[%clk 0:00:03]}  f4 {[%clk 0:00:03]} 51. Qg4+ {[%clk 0:00:03]}  Qg5 {[%clk 0:00:02]} 52. Qc8 {[%clk 0:00:04]}  Qg2 {[%clk 0:00:02]} 53. Qg8+ {[%clk 0:00:03]}  Kf5 {[%clk 0:00:02]} 54. Qf8+ {[%clk 0:00:03]}  Kg4 {[%clk 0:00:03]} 55. Qxc5 {[%clk 0:00:03]}  f3 {[%clk 0:00:03]} 56. Qc8+ {[%clk 0:00:04]}  Kg3 {[%clk 0:00:02]} 57. Qxa8 {[%clk 0:00:05]}  f2 {[%clk 0:00:03]} 58. Qxg2+ {[%clk 0:00:04]}  Kxg2 {[%clk 0:00:04]} 59. a8=Q+ {[%clk 0:00:05]}  Kg3 {[%clk 0:00:03]} 60. Qf8 {[%clk 0:00:06]}  f1=Q+ {[%clk 0:00:03]} 61. Qxf1 {[%clk 0:00:06]}  Kh2 {[%clk 0:00:04]} 62. b4 {[%clk 0:00:06]} 1-0


[Site "https://www.chess.com"]

[Event "Titled Tuesday Blitz December 20 Late 2022"]
[White "Ter-Sahakyan, Samvel"]
[Black "Iliaguev, Nisim"]
[WhiteFideId "13302531"]
[BlackFideId "2817276"]
[WhiteElo "2585"]
[BlackElo "2241"]
[Result "0-1"]
[Round "04"]
[TimeControl "180+1"]
[Date "2022.12.20"]
[WhiteClock "0:00:16"]
[BlackClock "0:00:55"]

1. d4 {[%clk 0:03:00]}  Nf6 {[%clk 0:02:52]} 2. c4 {[%clk 0:02:59]}  e6 {[%clk 0:02:51]} 3. Nf3 {[%clk 0:02:58]}  Bb4+ {[%clk 0:02:52]} 4. Bd2 {[%clk 0:02:57]}  Qe7 {[%clk 0:02:51]} 5. g3 {[%clk 0:02:55]}  O-O {[%clk 0:02:51]} 6. Bg2 {[%clk 0:02:54]}  a5 {[%clk 0:02:52]} 7. O-O {[%clk 0:02:53]}  Bxd2 {[%clk 0:02:50]} 8. Qxd2 {[%clk 0:02:53]}  Nc6 {[%clk 0:02:50]} 9. d5 {[%clk 0:02:44]}  exd5 {[%clk 0:02:48]} 10. cxd5 {[%clk 0:02:43]}  Ne5 {[%clk 0:02:47]} 11. Nxe5 {[%clk 0:02:41]}  Qxe5 {[%clk 0:02:48]} 12. d6 {[%clk 0:02:29]}  c6 {[%clk 0:02:46]} 13. Nc3 {[%clk 0:02:18]}  b5 {[%clk 0:02:42]} 14. Rfd1 {[%clk 0:02:08]}  b4 {[%clk 0:02:40]} 15. Na4 {[%clk 0:02:06]}  Ba6 {[%clk 0:02:36]} 16. Rac1 {[%clk 0:01:44]}  Qxe2 {[%clk 0:02:32]} 17. Nc5 {[%clk 0:01:41]}  Qxd2 {[%clk 0:02:24]} 18. Rxd2 {[%clk 0:01:42]}  Bb5 {[%clk 0:02:10]} 19. Bh3 {[%clk 0:01:26]}  Rad8 {[%clk 0:01:44]} 20. Re1 {[%clk 0:01:22]}  Bc4 {[%clk 0:01:39]} 21. b3 {[%clk 0:00:43]}  Be6 {[%clk 0:01:39]} 22. Bg2 {[%clk 0:00:35]}  Rfe8 {[%clk 0:01:31]} 23. h3 {[%clk 0:00:35]}  Nd5 {[%clk 0:01:29]} 24. Bxd5 {[%clk 0:00:25]}  Bxd5 {[%clk 0:01:30]} 25. Rxe8+ {[%clk 0:00:21]}  Rxe8 {[%clk 0:01:31]} 26. f4 {[%clk 0:00:21]}  g6 {[%clk 0:01:23]} 27. Nxd7 {[%clk 0:00:17]}  Rd8 {[%clk 0:01:19]} 28. Nf6+ {[%clk 0:00:16]}  Kg7 {[%clk 0:01:18]} 29. Nxd5 {[%clk 0:00:17]}  Rxd6 {[%clk 0:01:17]} 30. Kf2 {[%clk 0:00:16]}  Rxd5 {[%clk 0:01:12]} 31. Rxd5 {[%clk 0:00:15]}  cxd5 {[%clk 0:01:12]} 32. Ke3 {[%clk 0:00:15]}  Kf6 {[%clk 0:01:13]} 33. Kd4 {[%clk 0:00:16]}  Ke6 {[%clk 0:01:07]} 34. Kc5 {[%clk 0:00:16]}  g5 {[%clk 0:00:55]} 0-1


[Site "https://www.chess.com"]

[Event "Titled Tuesday Blitz December 20 Late 2022"]
[White "Urbina Perez, Juan Antonio"]
[Black "Rorrer, Grayson"]
[WhiteFideId "2217368"]
[BlackFideId "30944996"]
[WhiteElo "2197"]
[BlackElo "2200"]
[Result "1/2-1/2"]
[Round "04"]
[TimeControl "180+1"]
[Date "2022.12.21"]
[WhiteClock "0:00:20"]
[BlackClock "0:00:07"]

1. e4 {[%clk 0:03:00]}  c5 {[%clk 0:02:59]} 2. Nf3 {[%clk 0:02:59]}  d6 {[%clk 0:03:00]} 3. Bb5+ {[%clk 0:02:59]}  Nd7 {[%clk 0:03:00]} 4. d4 {[%clk 0:02:59]}  cxd4 {[%clk 0:03:00]} 5. Qxd4 {[%clk 0:03:00]}  a6 {[%clk 0:03:00]} 6. Bxd7+ {[%clk 0:03:00]}  Bxd7 {[%clk 0:03:01]} 7. Nc3 {[%clk 0:03:00]}  e5 {[%clk 0:03:00]} 8. Qd3 {[%clk 0:03:01]}  Rc8 {[%clk 0:03:00]} 9. Nd2 {[%clk 0:03:00]}  Nf6 {[%clk 0:02:50]} 10. O-O {[%clk 0:02:59]}  b5 {[%clk 0:02:44]} 11. a3 {[%clk 0:02:57]}  Be7 {[%clk 0:02:44]} 12. Rd1 {[%clk 0:02:58]}  O-O {[%clk 0:02:40]} 13. Nf1 {[%clk 0:02:58]}  Bg4 {[%clk 0:02:37]} 14. f3 {[%clk 0:02:56]}  Be6 {[%clk 0:02:37]} 15. Ne3 {[%clk 0:02:56]}  Qb6 {[%clk 0:02:38]} 16. Kh1 {[%clk 0:02:54]}  Qc5 {[%clk 0:02:34]} 17. Bd2 {[%clk 0:02:51]}  Rfd8 {[%clk 0:02:32]} 18. Rac1 {[%clk 0:02:38]}  h6 {[%clk 0:01:57]} 19. Be1 {[%clk 0:02:32]}  Qc6 {[%clk 0:01:46]} 20. Ncd5 {[%clk 0:02:27]}  Bxd5 {[%clk 0:01:45]} 21. Nxd5 {[%clk 0:02:28]}  Nxd5 {[%clk 0:01:45]} 22. Qxd5 {[%clk 0:02:29]}  Qd7 {[%clk 0:01:16]} 23. Ba5 {[%clk 0:02:24]}  Re8 {[%clk 0:01:13]} 24. Bb4 {[%clk 0:02:21]}  Bg5 {[%clk 0:01:07]} 25. Bd2 {[%clk 0:02:19]}  Be7 {[%clk 0:00:59]} 26. Be3 {[%clk 0:02:17]}  Qe6 {[%clk 0:00:52]} 27. c3 {[%clk 0:02:15]}  Rc7 {[%clk 0:00:50]} 28. Rc2 {[%clk 0:02:11]}  Rec8 {[%clk 0:00:47]} 29. Rcd2 {[%clk 0:02:06]}  Rc6 {[%clk 0:00:39]} 30. Kg1 {[%clk 0:01:59]}  Kh7 {[%clk 0:00:37]} 31. Rd3 {[%clk 0:01:46]}  Qg6 {[%clk 0:00:35]} 32. Qb3 {[%clk 0:01:35]}  f5 {[%clk 0:00:29]} 33. exf5 {[%clk 0:01:35]}  Qxf5 {[%clk 0:00:30]} 34. Qd5 {[%clk 0:01:34]}  Qg6 {[%clk 0:00:28]} 35. Bf2 {[%clk 0:01:31]}  Qe8 {[%clk 0:00:07]} 36. Qe4+ {[%clk 0:01:29]}  Kh8 {[%clk 0:00:08]} 37. Qf5 {[%clk 0:01:26]}  a5 {[%clk 0:00:06]} 38. h3 {[%clk 0:01:17]}  Qf8 {[%clk 0:00:02]} 39. Qxf8+ {[%clk 0:01:06]}  Bxf8 {[%clk 0:00:03]} 40. Bg3 {[%clk 0:01:04]}  Kg8 {[%clk 0:00:01]} 41. Rd5 {[%clk 0:01:02]}  Rc5 {[%clk 0:00:01]} 42. f4 {[%clk 0:01:01]}  Rxd5 {[%clk 0:00:01]} 43. Rxd5 {[%clk 0:01:01]}  exf4 {[%clk 0:00:02]} 44. Bxf4 {[%clk 0:01:01]}  b4 {[%clk 0:00:02]} 45. axb4 {[%clk 0:01:02]}  axb4 {[%clk 0:00:02]} 46. cxb4 {[%clk 0:01:02]}  Rc4 {[%clk 0:00:01]} 47. Bxd6 {[%clk 0:01:02]}  Bxd6 {[%clk 0:00:02]} 48. Rxd6 {[%clk 0:01:02]}  Rxb4 {[%clk 0:00:03]} 49. Rd2 {[%clk 0:01:03]}  Kf7 {[%clk 0:00:03]} 50. Kh2 {[%clk 0:01:03]}  Ke6 {[%clk 0:00:04]} 51. Re2+ {[%clk 0:01:00]}  Kf5 {[%clk 0:00:04]} 52. Rf2+ {[%clk 0:01:00]}  Ke5 {[%clk 0:00:04]} 53. Rf7 {[%clk 0:00:58]}  Rxb2 {[%clk 0:00:04]} 54. Rxg7 {[%clk 0:00:57]}  Kf6 {[%clk 0:00:04]} 55. Rh7 {[%clk 0:00:58]}  Kg6 {[%clk 0:00:04]} 56. Rc7 {[%clk 0:00:58]}  Rb5 {[%clk 0:00:04]} 57. Rc6+ {[%clk 0:00:58]}  Kg7 {[%clk 0:00:05]} 58. Rc3 {[%clk 0:00:58]}  Rb4 {[%clk 0:00:05]} 59. Rg3+ {[%clk 0:00:59]}  Kh7 {[%clk 0:00:05]} 60. Rf3 {[%clk 0:01:00]}  Re4 {[%clk 0:00:05]} 61. Kg3 {[%clk 0:01:01]}  Kg6 {[%clk 0:00:06]} 62. h4 {[%clk 0:01:01]}  Rd4 {[%clk 0:00:05]} 63. Kh3 {[%clk 0:01:01]}  Rc4 {[%clk 0:00:05]} 64. Rg3+ {[%clk 0:01:02]}  Kh7 {[%clk 0:00:05]} 65. Rf3 {[%clk 0:01:03]}  Rd4 {[%clk 0:00:05]} 66. Re3 {[%clk 0:01:03]}  Kg6 {[%clk 0:00:06]} 67. g3 {[%clk 0:01:04]}  Kg7 {[%clk 0:00:06]} 68. Re6 {[%clk 0:01:04]}  Rd2 {[%clk 0:00:05]} 69. Re4 {[%clk 0:01:03]}  Rd3 {[%clk 0:00:06]} 70. Rg4+ {[%clk 0:01:04]}  Kh7 {[%clk 0:00:05]} 71. Rf4 {[%clk 0:01:05]}  Rc3 {[%clk 0:00:06]} 72. Kg4 {[%clk 0:01:05]}  Kg6 {[%clk 0:00:06]} 73. Re4 {[%clk 0:01:05]}  Rc6 {[%clk 0:00:04]} 74. h5+ {[%clk 0:01:03]}  Kh7 {[%clk 0:00:04]} 75. Kf5 {[%clk 0:01:01]}  Rc5+ {[%clk 0:00:03]} 76. Re5 {[%clk 0:01:01]}  Rc7 {[%clk 0:00:02]} 77. Re6 {[%clk 0:00:55]}  Rc5+ {[%clk 0:00:02]} 78. Re5 {[%clk 0:00:55]}  Rc7 {[%clk 0:00:02]} 79. g4 {[%clk 0:00:52]}  Rf7+ {[%clk 0:00:02]} 80. Ke4 {[%clk 0:00:52]}  Kg7 {[%clk 0:00:02]} 81. Re6 {[%clk 0:00:51]}  Rf1 {[%clk 0:00:02]} 82. Rg6+ {[%clk 0:00:50]}  Kh7 {[%clk 0:00:02]} 83. Re6 {[%clk 0:00:49]}  Re1+ {[%clk 0:00:03]} 84. Kf5 {[%clk 0:00:49]}  Rf1+ {[%clk 0:00:03]} 85. Ke5 {[%clk 0:00:50]}  Re1+ {[%clk 0:00:04]} 86. Kf6 {[%clk 0:00:50]}  Rf1+ {[%clk 0:00:04]} 87. Ke7 {[%clk 0:00:49]}  Rf4 {[%clk 0:00:05]} 88. Rg6 {[%clk 0:00:49]}  Rf3 {[%clk 0:00:05]} 89. Ke6 {[%clk 0:00:48]}  Rf4 {[%clk 0:00:05]} 90. Ke5 {[%clk 0:00:48]}  Rf1 {[%clk 0:00:05]} 91. Ke4 {[%clk 0:00:47]}  Re1+ {[%clk 0:00:06]} 92. Kf3 {[%clk 0:00:47]}  Rf1+ {[%clk 0:00:07]} 93. Kg2 {[%clk 0:00:47]}  Rf4 {[%clk 0:00:07]} 94. Kg3 {[%clk 0:00:47]}  Rf1 {[%clk 0:00:08]} 95. Ra6 {[%clk 0:00:47]}  Kg7 {[%clk 0:00:07]} 96. Ra7+ {[%clk 0:00:47]}  Kg8 {[%clk 0:00:07]} 97. Kg2 {[%clk 0:00:46]}  Rf4 {[%clk 0:00:07]} 98. Kg3 {[%clk 0:00:46]}  Rf1 {[%clk 0:00:08]} 99. Ra5 {[%clk 0:00:45]}  Kg7 {[%clk 0:00:08]} 100. Rf5 {[%clk 0:00:45]}  Ra1 {[%clk 0:00:07]} 101. Re5 {[%clk 0:00:43]}  Ra3+ {[%clk 0:00:07]} 102. Kf4 {[%clk 0:00:43]}  Ra1 {[%clk 0:00:06]} 103. Re7+ {[%clk 0:00:42]}  Kg8 {[%clk 0:00:02]} 104. Kf5 {[%clk 0:00:42]}  Ra5+ {[%clk 0:00:02]} 105. Re5 {[%clk 0:00:42]}  Ra7 {[%clk 0:00:01]} 106. Re6 {[%clk 0:00:37]}  Kg7 {[%clk 0:00:01]} 107. Rg6+ {[%clk 0:00:37]}  Kh7 {[%clk 0:00:02]} 108. Re6 {[%clk 0:00:36]}  Ra5+ {[%clk 0:00:02]} 109. Re5 {[%clk 0:00:37]}  Ra7 {[%clk 0:00:03]} 110. Kf6 {[%clk 0:00:37]}  Ra6+ {[%clk 0:00:03]} 111. Re6 {[%clk 0:00:37]}  Ra4 {[%clk 0:00:02]} 112. Re7+ {[%clk 0:00:36]}  Kg8 {[%clk 0:00:03]} 113. Re8+ {[%clk 0:00:36]}  Kh7 {[%clk 0:00:03]} 114. Kf5 {[%clk 0:00:34]}  Ra5+ {[%clk 0:00:03]} 115. Re5 {[%clk 0:00:34]}  Ra4 {[%clk 0:00:04]} 116. Re7+ {[%clk 0:00:33]}  Kg8 {[%clk 0:00:04]} 117. Kg6 {[%clk 0:00:34]}  Rxg4+ {[%clk 0:00:04]} 118. Kxh6 {[%clk 0:00:34]}  Kf8 {[%clk 0:00:03]} 119. Ra7 {[%clk 0:00:34]}  Rg1 {[%clk 0:00:03]} 120. Ra8+ {[%clk 0:00:33]}  Kf7 {[%clk 0:00:03]} 121. Kh7 {[%clk 0:00:33]}  Rg2 {[%clk 0:00:04]} 122. h6 {[%clk 0:00:32]}  Rg1 {[%clk 0:00:04]} 123. Ra7+ {[%clk 0:00:33]}  Kf8 {[%clk 0:00:04]} 124. Kh8 {[%clk 0:00:32]}  Rg2 {[%clk 0:00:05]} 125. h7 {[%clk 0:00:30]}  Rg1 {[%clk 0:00:04]} 126. Ra8+ {[%clk 0:00:30]}  Kf7 {[%clk 0:00:05]} 127. Rg8 {[%clk 0:00:29]}  Ra1 {[%clk 0:00:05]} 128. Rb8 {[%clk 0:00:26]}  Rg1 {[%clk 0:00:04]} 129. Rb7+ {[%clk 0:00:27]}  Kf8 {[%clk 0:00:04]} 130. Rc7 {[%clk 0:00:25]}  Rg2 {[%clk 0:00:04]} 131. Rc8+ {[%clk 0:00:26]}  Kf7 {[%clk 0:00:04]} 132. Rg8 {[%clk 0:00:26]}  Ra2 {[%clk 0:00:05]} 133. Rg3 {[%clk 0:00:24]}  Ra8+ {[%clk 0:00:04]} 134. Rg8 {[%clk 0:00:24]}  Ra2 {[%clk 0:00:05]} 135. Rc8 {[%clk 0:00:24]}  Rg2 {[%clk 0:00:05]} 136. Rb8 {[%clk 0:00:24]}  Rg1 {[%clk 0:00:05]} 137. Rb7+ {[%clk 0:00:24]}  Kf8 {[%clk 0:00:06]} 138. Rc7 {[%clk 0:00:24]}  Rg2 {[%clk 0:00:06]} 139. Rd7 {[%clk 0:00:24]}  Rg3 {[%clk 0:00:06]} 140. Rd5 {[%clk 0:00:24]}  Rg1 {[%clk 0:00:06]} 141. Rd4 {[%clk 0:00:24]}  Rg2 {[%clk 0:00:06]} 142. Rf4+ {[%clk 0:00:25]}  Ke7 {[%clk 0:00:07]} 143. Rf3 {[%clk 0:00:24]}  Rg1 {[%clk 0:00:07]} 144. Rf2 {[%clk 0:00:24]}  Rg3 {[%clk 0:00:07]} 145. Ra2 {[%clk 0:00:20]}  Rg1 {[%clk 0:00:07]} 146. Ra8 {[%clk 0:00:20]}  Kf7 {[%clk 0:00:07]} 147. Rg8 {[%clk 0:00:20]}  Ra1 {[%clk 0:00:07]} 148. Rc8 {[%clk 0:00:19]}  Rg1 {[%clk 0:00:07]} 149. Rc7+ {[%clk 0:00:20]}  Kf8 {[%clk 0:00:08]} 150. Rc8+ {[%clk 0:00:20]}  Kf7 {[%clk 0:00:08]} 151. Ra8 {[%clk 0:00:20]}  Rg2 {[%clk 0:00:08]} 152. Rg8 {[%clk 0:00:20]}  Ra2 {[%clk 0:00:07]} 1/2-1/2


[Site "https://www.chess.com"]